bitfinex/quotes_ETHUSD_20220310
["timestamp","ask_amount","ask_price","bid_price","bid_amount"]
[1646891957046,1.93006,2594.4,2593.8,0.00645165]
[1646891957248,0.06192177,2594.2,2593.8,0.00645165]
[1646891957447,0.06215316,2594.4,2593.9,0.89542642]
[1646891958250,0.06215316,2594.4,2593.9,0.00645152]
[1646891958450,0.96501,2594.4,2593.9,0.00645152]
[1646891958651,1.99126246,2594.3,2593.9,0.00645152]
[1646891959079,0.06998692,2594.2,2593.2,0.4432418]
[1646891959279,1.03376132,2594.1,2593.8,0.00645165]
[1646891959484,0.06343233,2594.0,2593.8,0.00645165]
[1646891959984,0.06384682,2593.9,2593.8,0.00645165]
[1646891960183,0.06384682,2593.9,2593.2,0.0586418]
[1646891960586,0.9651777,2593.8,2593.6,0.00645215]
[1646891961389,0.06384682,2593.9,2593.6,0.00645215]
[1646891961586,0.07145603,2593.8,2593.3,0.90121469]
[1646891961786,2.3752753,2594.2,2593.4,7.71785264]
[1646891961787,0.07035348,2594.0,2593.4,7.71785264]
[1646891961986,0.07035348,2594.0,2593.7,1.15934904]
[1646891962186,0.06961685,2594.3,2593.7,1.15934904]
[1646891962635,0.06961685,2594.3,2594.1,0.98621984]
[1646891962933,1.9302026,2594.2,2594.1,0.98621984]
[1646891963739,0.06961685,2594.3,2594.1,0.98621984]
[1646891963941,1.02806754,2594.8,2594.1,0.98621984]
[1646891964137,0.0722102,2594.7,2594.1,0.98621984]
[1646891965242,0.0722102,2594.7,2594.5,0.99029957]
[1646891966041,0.964809,2594.8,2594.5,0.99029957]
[1646891967693,0.964809,2594.8,2594.0,0.4401731]
[1646891967897,0.06933129,2594.7,2594.4,0.00645028]
[1646891968698,0.06933129,2594.7,2593.8,0.05790663]
[1646891968896,0.01933129,2594.7,2593.8,0.05790663]
[1646891969096,0.01933129,2594.7,2594.3,0.00645053]
[1646891969397,0.31933129,2594.7,2594.3,0.00645053]
[1646891969798,0.96504,2594.5,2594.3,0.00645053]
[1646891969997,0.96504,2594.5,2594.1,0.88256889]
[1646891970231,1.93008,2594.5,2594.2,0.00645065]
[1646891970633,0.96504,2594.5,2594.2,0.00645065]
[1646891971134,0.96504,2594.5,2593.9,0.07023208]
[1646891971336,0.96504,2594.5,2594.0,1.18741617]
[1646891971538,0.96504,2594.5,2594.1,3.57994381]
[1646891971837,0.96504,2594.5,2594.4,0.86969702]
[1646891972039,0.964809,2594.8,2594.4,0.86969702]
[1646891972040,0.96488,2594.7,2594.4,0.86969702]
[1646891972338,0.06784091,2594.6,2594.4,0.86969702]
[1646891972538,1.929629,2594.8,2594.4,0.86969702]
[1646891972837,1.929629,2594.8,2594.4,3.56969702]
[1646891973041,1.929629,2594.8,2594.4,3.63977875]
[1646891973238,0.964809,2594.8,2594.4,3.63977875]
[1646891974092,0.964809,2594.8,2594.4,3.56969702]
[1646891975192,0.964809,2594.8,2594.4,2.7]
[1646891975397,1.03392848,2594.8,2594.4,2.7]
[1646891975596,0.06407559,2594.7,2594.4,2.7]
[1646891975793,0.36407559,2594.7,2594.4,2.7]
[1646891975993,2.6143372,2594.7,2594.4,2.7]
[1646891976194,0.06774343,2594.6,2594.4,2.7]
[1646891977633,0.06774343,2594.6,2594.4,1.15604433]
[1646891978036,1.03254813,2594.6,2594.4,1.15604433]
[1646891978239,0.96488,2594.5,2594.4,1.15604433]
[1646891978636,5.14948,2594.5,2594.4,1.15604433]
[1646891978838,3.09448,2594.5,2594.4,1.15604433]
[1646891979036,3.25464461,2594.5,2594.4,1.15604433]
[1646891979537,5.15002191,2594.5,2594.4,1.15604433]
[1646891980940,4.76542191,2594.5,2594.4,1.15604433]
[1646891981985,4.46542191,2594.5,2594.4,1.15604433]
[1646891982385,7.48900676,2594.5,2594.4,1.15604433]
[1646891983988,6.88384215,2594.5,2594.4,1.15604433]
[1646891984189,6.88384215,2594.5,2594.3,1.07208044]
[1646891984190,3.02358485,2594.5,2594.3,1.07208044]
[1646891984590,3.02358485,2594.5,2594.4,0.91632041]
[1646891984790,0.17021937,2595.1,2594.4,0.91632041]
[1646891984992,3.02311018,2594.8,2594.4,0.91632041]
[1646891985531,0.01045157,2594.7,2594.4,0.91632041]
[1646891985731,0.02050633,2594.7,2594.4,0.91632041]
[1646891986434,2.99361651,2594.8,2594.5,50.5]
[1646891987039,2.99361651,2594.8,2594.4,1.97632041]
[1646891987237,2.99361651,2594.8,2594.4,0.92169551]
[1646891987534,2.99361651,2594.8,2594.4,0.0053751]
[1646891987735,0.16016461,2594.7,2594.4,0.0053751]
[1646891988136,0.16016461,2594.7,2594.1,3.5]
[1646891988336,1.12503461,2594.7,2594.6,0.98231894]
[1646891988540,0.16016461,2594.7,2594.6,0.98231894]
[1646891989185,1.0353977,2594.8,2594.6,0.98231894]
[1646891989787,0.070589,2594.8,2594.6,0.98231894]
[1646891991595,0.070589,2594.8,2594.4,0.00532141]
[1646891991797,0.070589,2594.8,2594.1,11.80536519]
[1646891991995,0.070589,2594.8,2594.4,0.00533265]
[1646891992635,0.070589,2594.8,2594.5,0.99188887]
[1646891994037,0.070589,2594.8,2594.5,2.09188887]
[1646891994638,0.070589,2594.8,2594.5,2.04188887]
[1646891995744,0.05924017,2594.7,2594.5,1.1]
[1646891996397,1.9295895,2594.8,2594.6,27.5]
[1646891996398,0.9647595,2594.8,2594.6,27.5]
[1646891997389,0.9647595,2594.8,2594.6,28.38882742]
[1646891997589,0.9647595,2594.8,2594.5,1.1]
[1646891997989,0.04768252,2594.9,2594.5,1.1]
[1646891998290,3.02287122,2595.1,2594.9,49.95231748]
[1646891998688,3.02287122,2595.1,2594.7,0.2025]
[1646891999292,3.02287122,2595.1,2594.7,0.20783017]
[1646891999489,3.02287122,2595.1,2594.8,1.00030601]
[1646891999696,0.96445,2595.7,2595.2,66.5]
[1646891999892,0.00251111,2595.8,2595.3,3.58162991]
[1646892000159,5.75969722,2596.6,2595.8,50.0]
[1646892000160,0.16016461,2596.5,2595.8,50.0]
[1646892000457,5.6062742,2596.6,2595.9,3.5694452]
[1646892000458,0.96419,2596.6,2595.9,3.5694452]
[1646892000659,6.6043,2597.1,2596.5,1.00978412]
[1646892000861,6.6043,2597.1,2596.5,1.09052306]
[1646892001156,2.62948103,2597.4,2596.5,1.09052306]
[1646892001157,0.3846,2597.0,2596.5,1.0203]
[1646892001761,0.96407,2596.8,2596.4,0.2679]
[1646892001962,0.96407,2596.8,2596.2,1.19562158]
[1646892002162,5.81532174,2596.9,2595.8,1.14]
[1646892002163,3.8846,2596.7,2595.8,1.14]
[1646892002364,0.04245689,2596.6,2595.8,0.07261182]
[1646892002560,0.04245689,2596.6,2595.5,6.1943]
[1646892002561,0.3846,2596.5,2595.9,7.7045]
[1646892002762,0.8296,2596.5,2595.9,7.7045]
[1646892002962,0.03677994,2596.2,2595.9,7.7045]
[1646892003167,0.87871986,2596.3,2595.9,7.7045]
[1646892003562,0.3846,2596.1,2595.9,7.7045]
[1646892003762,0.87682989,2596.0,2595.9,7.7045]
[1646892004584,0.91360983,2596.0,2595.9,7.7045]
[1646892005186,0.3846,2595.6,2595.0,0.0904478]
[1646892005387,0.8296,2595.5,2595.0,0.09897508]
[1646892005587,1.92926,2595.8,2595.0,0.00852728]
[1646892005588,4.3296,2595.4,2595.0,0.00852728]
[1646892005789,0.3846,2595.2,2594.5,0.08421358]
[1646892005991,0.3846,2595.0,2594.4,0.00085292]
[1646892006188,0.445,2594.9,2594.4,0.00085292]
[1646892006389,0.9650728,2594.6,2593.1,6.7829]
[1646892006594,1.93027,2594.4,2593.3,0.07738476]
[1646892006797,1.93027,2594.4,2593.4,7.7118]
[1646892006798,0.04277105,2594.3,2593.4,7.7118]
[1646892006997,0.445,2594.2,2593.4,7.7118]
[1646892007194,0.05356883,2594.1,2593.4,7.7118]
[1646892007396,0.96522,2594.0,2593.5,0.92446296]
[1646892007639,0.03677994,2593.8,2593.5,0.92446296]
[1646892008038,0.96522,2594.0,2593.5,0.92446296]
[1646892008239,0.02064103,2593.8,2593.4,7.7118]
[1646892008439,0.96528,2593.7,2593.4,7.7118]
[1646892008640,0.49850178,2593.6,2593.4,7.7118]
[1646892009240,0.03677994,2593.5,2593.4,7.7118]
[1646892009842,0.05742097,2593.5,2593.4,7.7118]
[1646892012495,0.50242097,2593.5,2593.4,7.7118]
[1646892013693,0.80242097,2593.5,2593.4,7.7118]
[1646892013890,0.88702097,2593.5,2593.4,7.7118]
[1646892014093,0.50242097,2593.5,2593.4,7.7118]
[1646892014292,0.50242097,2593.5,2593.4,8.0303775]
[1646892014491,0.05742097,2593.5,2593.4,13.48132692]
[1646892014694,2.56066332,2593.7,2593.4,11.08132692]
[1646892014890,2.56066332,2593.7,2593.4,12.30902692]
[1646892015139,0.96516,2594.0,2593.7,50.0]
[1646892015337,2.56066332,2594.4,2593.8,3.5]
[1646892015538,2.56066332,2594.4,2594.2,50.0]
[1646892015737,3.41362621,2595.2,2594.4,126.93933668]
[1646892015938,1.966e-05,2595.0,2594.5,3.5]
[1646892016139,1.966e-05,2595.0,2594.7,1.066999]
[1646892016340,1.92882,2596.3,2595.1,12.1246]
[1646892016543,0.078349,2596.5,2595.3,12.20878885]
[1646892016742,1.079e-05,2595.5,2595.4,15.6246]
[1646892016942,0.24481621,2597.0,2595.9,0.08171468]
[1646892017142,0.24481621,2597.0,2595.9,4.52491468]
[1646892017143,0.0436487,2597.0,2595.9,4.52491468]
[1646892017347,0.96414,2596.8,2596.4,0.96489095]
[1646892017743,0.96414,2596.8,2596.5,0.07552634]
[1646892018043,0.04374432,2597.4,2596.5,0.07552634]
[1646892018044,0.0444275,2597.6,2596.7,0.08613029]
[1646892018244,1.81417389,2598.5,2596.9,12.1246]
[1646892018245,2.19877389,2598.5,2596.9,12.1246]
[1646892018444,2.18887606,2598.5,2597.2,0.08899052]
[1646892018642,0.96369,2598.0,2597.3,0.07911995]
[1646892019090,0.96369,2598.0,2597.2,0.9413]
[1646892019091,0.96369,2598.0,2596.9,0.07819826]
[1646892019291,0.96369,2598.0,2597.0,0.07881542]
[1646892019292,0.3846,2597.9,2597.0,0.07881542]
[1646892019691,2.31218,2597.9,2597.5,3.72525962]
[1646892019894,2.31218,2597.9,2597.5,3.81440212]
[1646892020494,0.96385,2597.7,2597.5,3.81440212]
[1646892020692,2.89148,2597.7,2597.6,0.08945735]
[1646892020893,2.89148,2597.7,2597.5,3.72525962]
[1646892021092,2.89121,2598.7,2597.5,3.72525962]
[1646892021293,2.89121,2598.7,2597.6,3.5]
[1646892021496,1.34804,2598.8,2598.2,0.87431976]
[1646892021694,1.34804,2598.8,2598.2,1.1576]
[1646892022097,6.44342082,2599.6,2598.3,3.5]
[1646892022300,43.799657,2600.9,2598.3,3.5]
[1646892022301,0.58425884,2600.6,2598.5,3.0]
[1646892022501,0.3975546,2600.8,2598.6,3.5]
[1646892022739,0.96287,2600.6,2599.3,0.0120343]
[1646892022940,2.042027,2600.9,2599.3,0.0120343]
[1646892022941,0.116317,2600.9,2600.8,1.06514553]
[1646892023139,0.116317,2600.9,2600.8,11.19174553]
[1646892023340,1.61325183,2602.0,2600.9,197.883683]
[1646892023541,1.61325183,2602.0,2601.0,3.5]
[1646892023741,0.116287,2601.6,2600.9,148.0]
[1646892023940,0.116287,2601.6,2601.0,9.2335]
[1646892024141,0.96251,2601.5,2601.0,9.2335]
[1646892024542,0.96251,2601.5,2601.0,12.7335]
[1646892024748,0.96251,2601.5,2601.0,9.2335]
[1646892024943,0.96251,2601.5,2601.2,3.72525962]
[1646892025343,0.96251,2601.5,2601.2,4.78805962]
[1646892025741,0.96251,2601.5,2601.3,3.5]
[1646892025944,0.43177738,2602.4,2601.3,3.5]
[1646892025945,0.00224103,2602.3,2601.3,3.5]
[1646892026148,0.00224103,2602.6,2601.3,3.5]
[1646892026445,0.16016461,2602.2,2601.3,3.5]
[1646892026634,0.16016461,2602.2,2601.2,4.13655962]
[1646892026635,0.00213742,2601.5,2601.2,4.13655962]
[1646892026832,0.00213742,2601.5,2601.3,9.2326]
[1646892027228,0.16230203,2601.5,2601.4,3.5]
[1646892027429,0.16230203,2601.5,2601.3,10.1693]
[1646892027631,0.16016461,2601.5,2601.4,0.9225034]
[1646892027832,0.00213742,2601.5,2601.4,4.4225034]
[1646892028030,0.00213742,2601.5,2601.4,0.9225034]
[1646892028438,0.00213742,2601.5,2601.3,9.2326]
[1646892028634,0.16016461,2601.8,2601.4,3.5]
[1646892028835,0.53826286,2603.1,2601.5,0.07622119]
[1646892028836,0.09550389,2603.1,2601.5,0.07622119]
[1646892029134,0.00213742,2601.6,2601.5,1.18572119]
[1646892029335,0.00213742,2601.6,2601.5,10.41772119]
[1646892029535,0.00213742,2601.6,2601.5,9.232]
[1646892029934,0.44724103,2602.5,2601.5,9.232]
[1646892030133,0.445,2602.5,2601.5,9.232]
[1646892030336,0.445,2602.5,2601.8,3.72525962]
[1646892030535,0.16016461,2602.4,2601.8,3.72525962]
[1646892030836,1.40736,2602.3,2601.8,3.72525962]
[1646892031034,1.40736,2602.3,2601.8,2.26014942]
[1646892031238,0.445,2602.3,2601.8,2.26014942]
[1646892031434,0.16016461,2602.4,2601.8,2.26014942]
[1646892031640,0.00239175,2602.2,2601.8,2.26014942]
[1646892031839,1.02902364,2602.0,2601.8,2.26014942]
[1646892032843,42.0,2601.9,2601.5,9.232]
[1646892033041,42.0,2601.9,2600.6,0.07142071]
[1646892033042,3.5,2601.8,2600.6,0.07142071]
[1646892033240,4.245,2601.8,2600.5,0.0762505]
[1646892033443,5.245,2601.8,2600.5,0.0762505]
[1646892033642,4.945,2601.8,2600.9,50.0]
[1646892033890,4.945,2601.8,2600.5,0.0762505]
[1646892033891,5.245,2601.8,2600.5,0.0762505]
[1646892034081,0.00213628,2601.3,2600.5,0.0762505]
[1646892034684,1.05602636,2601.3,2600.5,0.0762505]
[1646892034884,1.04964956,2600.9,2600.5,0.0762505]
[1646892035086,3.5,2601.5,2600.9,48.95035044]
[1646892035287,0.89044389,2601.0,2600.5,0.15569578]
[1646892035489,0.89044389,2601.0,2599.6,0.07482634]
[1646892035685,0.89044389,2601.0,2599.7,7.6914]
[1646892035886,0.89044389,2601.0,2599.8,0.07337439]
[1646892036288,0.88823145,2601.0,2599.8,0.07337439]
[1646892036486,0.00223858,2600.5,2600.0,0.07916812]
[1646892036686,0.00223858,2600.5,2600.1,7.692]
[1646892036886,1.16477128,2600.6,2600.5,49.99776142]
[1646892037087,0.96269,2601.1,2600.2,0.08715381]
[1646892037288,4.46269,2601.1,2600.2,0.08715381]
[1646892037933,1.10607575,2600.4,2600.2,0.08715381]
[1646892038137,0.445,2600.8,2600.1,7.692]
[1646892038333,4.5,2601.1,2600.1,7.692]
[1646892038334,4.90778,2600.7,2600.1,7.692]
[1646892038535,0.04343498,2600.5,2600.1,7.692]
[1646892038734,0.445,2600.4,2600.1,7.692]
[1646892039134,1.0,2601.1,2600.2,0.08569192]
[1646892039135,1.9256046,2600.9,2600.2,0.08569192]
[1646892039435,1.04470967,2600.5,2600.1,7.692]
[1646892040037,2.00763967,2600.5,2600.1,7.692]
[1646892040236,2.30763967,2600.5,2600.1,7.692]
[1646892040437,0.49099521,2600.4,2600.1,7.692]
[1646892040641,0.04203514,2600.3,2600.1,7.692]
[1646892041396,0.96295,2600.6,2600.1,7.692]
[1646892041587,0.96295,2600.6,2600.2,0.07529174]
[1646892042188,0.96289,2600.5,2600.1,7.692]
[1646892042388,1.40789,2600.5,2600.1,7.692]
[1646892042590,1.40789,2600.5,2600.1,6.15154396]
[1646892042892,2.63782398,2600.5,2600.2,0.07786944]
[1646892043089,0.96295,2600.6,2600.2,0.07786944]
[1646892044590,0.96295,2600.6,2600.1,6.15154396]
[1646892044591,1.40795,2600.6,2600.1,6.15154396]
[1646892044792,0.96288,2600.5,2600.1,6.15154396]
[1646892044990,0.16016461,2601.2,2600.6,50.0]
[1646892044991,1.1989478,2600.9,2600.6,50.0]
[1646892045236,1.1989478,2600.9,2600.2,1.1]
[1646892045436,1.92551,2601.1,2600.3,0.08779948]
[1646892045642,0.96267,2600.8,2600.3,0.08779948]
[1646892046341,1.21342434,2600.7,2600.3,0.08779948]
[1646892047943,1.21342434,2600.7,2600.2,1.1]
[1646892048143,1.21342434,2600.7,2600.2,1.18350611]
[1646892048748,2.62121434,2600.7,2600.2,1.18350611]
[1646892049185,15.5,2600.6,2600.1,5.97444133]
[1646892049581,2.62121434,2600.7,2600.1,5.97444133]
[1646892050485,0.96279,2600.6,2600.1,5.97444133]
[1646892050689,2.92517,2601.5,2600.2,3.8846]
[1646892050889,0.02596692,2602.0,2600.5,0.2264]
[1646892051088,0.445,2601.9,2600.5,1.2391]
[1646892051285,0.445,2601.8,2600.5,1.2391]
[1646892051487,1.13101609,2601.4,2600.6,0.89038473]
[1646892051786,2.09347609,2601.4,2600.5,0.2264]
[1646892051985,2.09347609,2601.4,2600.3,0.45118808]
[1646892052187,2.92307609,2601.4,2600.3,0.06658808]
[1646892052386,2.92307609,2601.4,2600.1,5.97444133]
[1646892052387,0.3,2601.3,2600.1,5.97444133]
[1646892052637,0.445,2601.2,2600.1,5.97444133]
[1646892052839,0.96278,2600.5,2600.1,5.97444133]
[1646892053041,0.445,2600.8,2600.1,5.97444133]
[1646892053644,0.9626945,2601.1,2600.1,5.97444133]
[1646892053842,1.92545,2601.2,2600.6,0.94169588]
[1646892054042,1.92545,2601.2,2600.3,0.07344684]
[1646892054043,0.96252,2601.2,2600.3,0.07344684]
[1646892054846,0.445,2601.1,2600.3,0.07344684]
[1646892055346,0.97824344,2600.7,2600.3,0.07344684]
[1646892056148,0.97824344,2600.7,2600.1,5.97444133]
[1646892056396,1.94091344,2600.7,2600.1,6.04134682]
[1646892056590,0.00254136,2600.6,2600.1,6.04134682]
[1646892057390,1.1316446,2600.3,2600.1,6.04134682]
[1646892057593,0.96277,2600.5,2600.4,48.8683554]
[1646892057790,0.9652498,2600.6,2600.1,5.97444133]
[1646892058390,1.03367615,2600.5,2600.1,5.97444133]
[1646892059391,0.00245976,2600.6,2600.1,5.97444133]
[1646892059392,0.00245976,2600.6,2600.2,3.5]
[1646892059598,0.05496884,2600.9,2600.6,49.99754024]
[1646892059796,0.05496884,2600.9,2600.3,80.5]
[1646892060234,0.05496884,2600.9,2600.4,3.5]
[1646892060433,3.33347,2601.3,2600.7,0.87700921]
[1646892060434,0.9626,2601.1,2600.7,0.87700921]
[1646892060836,0.9626,2601.1,2600.7,0.83700921]
[1646892061238,0.9626,2601.1,2600.4,3.56576038]
[1646892061740,0.9626,2601.1,2600.4,0.06576038]
[1646892061939,0.9626,2601.1,2600.4,3.56576038]
[1646892062439,0.9626,2601.1,2600.4,1.13106165]
[1646892062639,0.9626,2601.1,2600.4,4.63106165]
[1646892062839,0.9626,2601.1,2600.4,1.13106165]
[1646892063039,0.98966902,2601.0,2600.1,5.97444133]
[1646892063243,1.92576,2600.8,2600.1,5.97444133]
[1646892063542,0.445,2600.7,2600.1,5.97444133]
[1646892063893,0.44754881,2600.7,2600.1,5.97444133]
[1646892064088,0.44754881,2600.7,2600.4,1.17075734]
[1646892064287,0.44754881,2600.7,2600.1,5.97444133]
[1646892064488,0.44754881,2600.7,2600.2,1.59629851]
[1646892064687,0.445,2600.7,2600.2,1.59629851]
[1646892064887,0.445,2600.7,2600.1,5.97444133]
[1646892065187,0.44753551,2600.7,2600.1,5.97444133]
[1646892065387,0.96281,2600.6,2600.1,5.97444133]
[1646892065590,1.40788,2600.5,2600.1,5.97444133]
[1646892065788,2.45730484,2600.5,2600.1,4.43369653]
[1646892066088,2.51454608,2600.5,2600.1,4.43369653]
[1646892066288,2.46454608,2600.5,2600.1,4.43369653]
[1646892066492,0.0505863,2600.4,2600.2,1.59627703]
[1646892066695,0.91288,2600.5,2600.2,1.59627703]
[1646892067494,0.445,2600.7,2600.3,1.16710105]
[1646892067495,0.44753546,2600.7,2600.3,1.16710105]
[1646892067735,0.44753546,2600.7,2600.1,4.43369653]
[1646892067935,0.44753546,2600.7,2600.2,1.59625133]
[1646892068335,0.445,2600.7,2600.2,1.59625133]
[1646892068540,0.445,2600.7,2600.1,4.43369653]
[1646892068739,0.44753555,2600.7,2600.1,5.64096687]
[1646892069543,0.445,2600.7,2600.1,5.64096687]
[1646892069743,0.96282,2600.6,2600.1,5.64096687]
[1646892070342,0.00253085,2600.7,2600.1,5.64096687]
[1646892070542,0.49921521,2600.7,2600.1,5.64096687]
[1646892070843,0.05544817,2600.6,2600.1,5.64096687]
[1646892071042,1.01818817,2600.6,2600.1,5.64096687]
[1646892071496,1.01818817,2600.6,2600.1,4.43369653]
[1646892071697,0.05676305,2600.5,2600.1,4.43369653]
[1646892071899,0.05861403,2600.4,2600.1,4.43369653]
[1646892072097,0.445,2600.3,2600.1,4.43369653]
[1646892072495,0.05072298,2600.2,2600.1,4.43369653]
[1646892072694,0.49572298,2600.2,2600.1,4.43369653]
[1646892072896,1.69205096,2600.2,2600.1,4.43369653]
[1646892073098,1.69205096,2600.2,2600.1,2.89268915]
[1646892074506,5.19205096,2600.2,2600.1,2.89268915]
[1646892074900,2.69205096,2600.2,2600.1,2.89268915]
[1646892076143,1.69205096,2600.2,2600.1,2.89268915]
[1646892076345,2.69205096,2600.2,2600.1,2.89268915]
[1646892076543,1.69205096,2600.2,2600.1,2.89268915]
[1646892076743,2.69205096,2600.2,2600.1,2.89268915]
[1646892076943,1.69205096,2600.2,2600.1,2.89268915]
[1646892077145,1.69205096,2600.2,2598.9,3.5]
[1646892077146,42.3846,2600.1,2598.9,3.5]
[1646892077344,42.3846,2600.1,2598.7,2.79027716]
[1646892077345,0.99275784,2599.3,2598.7,2.79027716]
[1646892077547,0.99275784,2599.3,2598.7,0.06917716]
[1646892077548,0.445,2599.2,2598.7,0.06917716]
[1646892077748,0.79810352,2599.2,2598.4,0.0854125]
[1646892077946,0.05767185,2599.1,2598.4,0.0854125]
[1646892078146,0.445,2599.0,2598.4,0.0854125]
[1646892078356,0.445,2599.0,2598.2,0.00103521]
[1646892078357,1.04401241,2598.6,2598.2,0.00103521]
[1646892078549,0.4915573,2598.5,2598.2,0.00103521]
[1646892078747,0.04599317,2598.4,2598.2,0.00103521]
[1646892078990,0.445,2598.3,2598.2,0.00103521]
[1646892079188,0.445,2598.3,2597.6,0.07350838]
[1646892079390,0.96367,2598.2,2597.8,1.00113274]
[1646892079795,0.05764335,2598.9,2597.9,0.07499145]
[1646892079992,0.445,2598.8,2598.0,0.0817527]
[1646892080393,0.445,2598.8,2598.0,0.4663527]
[1646892080592,0.50660233,2598.8,2598.3,1.13128765]
[1646892080995,0.50660233,2598.8,2598.4,0.08036211]
[1646892081196,0.50660233,2598.8,2598.3,1.13128765]
[1646892081395,0.50660233,2598.8,2598.2,3.5]
[1646892081597,0.50660233,2598.8,2598.1,0.0763375]
[1646892081998,0.06160233,2598.8,2598.1,0.0763375]
[1646892082196,0.06160233,2598.8,2598.3,0.3846]
[1646892082399,0.06160233,2598.8,2598.5,0.45182877]
[1646892082638,0.11697089,2599.0,2598.6,93.5]
[1646892082839,0.11697089,2599.0,2598.7,1.14763577]
[1646892084040,0.11697089,2599.0,2598.7,0.08295818]
[1646892085044,0.11697089,2599.0,2598.7,0.96915923]
[1646892085240,1.08028089,2599.0,2598.7,0.96915923]
[1646892085842,1.08028089,2599.0,2598.6,92.92770206]
[1646892086042,1.08028089,2599.0,2598.4,0.86843952]
[1646892086242,1.18456161,2599.0,2598.5,3.5]
[1646892086494,0.11697089,2599.0,2598.4,0.86843952]
[1646892087094,0.11697089,2599.0,2598.3,0.05846331]
[1646892087095,1.08033089,2599.0,2598.3,0.05846331]
[1646892087298,0.06406229,2598.9,2598.2,7.69793577]
[1646892087497,1.47248229,2598.9,2598.2,7.69793577]
[1646892087798,0.05982739,2598.8,2598.2,8.0815]
[1646892088195,1.00510648,2598.7,2598.2,7.6969]
[1646892088397,0.07399406,2598.6,2598.2,7.6969]
[1646892089397,0.51899406,2598.6,2598.2,7.6969]
[1646892089597,0.07306066,2598.5,2598.2,7.6969]
[1646892089798,0.51806066,2598.5,2598.2,7.6969]
[1646892090447,0.445,2598.5,2598.2,7.6969]
[1646892090644,0.05959056,2598.4,2598.2,7.6969]
[1646892091049,0.445,2598.3,2598.2,7.6969]
[1646892091446,0.745,2598.3,2598.2,7.6969]
[1646892091845,1.91799939,2598.3,2598.2,7.6969]
[1646892092247,0.445,2598.3,2598.2,7.6969]
[1646892096490,0.52,2598.3,2598.2,7.6969]
[1646892096698,0.82,2598.3,2598.2,7.6969]
[1646892097653,0.82,2598.3,2598.2,6.15504914]
[1646892097842,0.52,2598.3,2598.2,6.15504914]
[1646892101694,0.57828189,2598.3,2598.2,6.15504914]
[1646892103099,0.82,2598.3,2598.2,6.15504914]
[1646892103502,2.04724274,2598.3,2598.2,6.15504914]
[1646892104800,2.04724274,2598.3,2598.2,4.61287894]
[1646892105839,0.52,2598.3,2598.2,4.61287894]
[1646892106047,0.075,2598.3,2598.2,4.61287894]
[1646892106244,0.23516461,2598.3,2598.2,4.61287894]
[1646892106544,0.16016461,2598.3,2598.2,4.61287894]
[1646892109799,0.23516461,2598.3,2598.2,4.61287894]
[1646892110602,0.9636,2598.4,2598.2,5.7248828]
[1646892110603,0.00207128,2598.4,2598.2,5.7248828]
[1646892110800,0.445,2598.5,2598.2,4.61287894]
[1646892111420,0.9636,2598.4,2598.2,4.61287894]
[1646892111603,1.4086,2598.4,2598.2,3.07088706]
[1646892111903,1.7086,2598.4,2598.2,3.07088706]
[1646892112303,1.4086,2598.4,2598.2,3.07088706]
[1646892112504,0.445,2598.4,2598.2,3.07088706]
[1646892112743,0.445,2598.4,2598.2,3.06881578]
[1646892113142,0.06260497,2598.3,2598.2,3.06881578]
[1646892113348,0.06260497,2598.3,2598.2,4.17389398]
[1646892114046,0.445,2599.0,2598.3,50.3846]
[1646892114245,0.06252773,2599.1,2598.6,50.0]
[1646892114447,0.20107659,2599.3,2598.3,1.04351062]
[1646892114448,0.06381299,2599.3,2598.3,1.04351062]
[1646892114647,0.05743983,2598.4,2598.3,1.04351062]
[1646892114847,0.06381299,2599.3,2598.8,1.20481398]
[1646892116049,0.06381299,2599.3,2598.4,87.0]
[1646892116493,1.02708299,2599.3,2598.4,87.0]
[1646892116791,0.06503933,2599.2,2598.4,87.0]
[1646892116994,0.06503933,2599.2,2598.7,0.88873215]
[1646892117992,0.05616363,2599.1,2598.7,0.88873215]
[1646892119795,0.05616363,2599.1,2598.7,1.15529576]
[1646892120438,0.05616363,2599.1,2598.4,86.34721558]
[1646892121047,0.07349991,2599.3,2598.2,5.93655154]
[1646892121048,0.445,2599.0,2598.2,5.93655154]
[1646892121347,0.05616363,2599.2,2598.2,3.06985154]
[1646892121348,0.06142796,2598.8,2598.2,3.06985154]
[1646892121544,1.1296,2598.9,2598.2,3.06881578]
[1646892121545,0.05737774,2598.6,2598.2,3.06881578]
[1646892121742,0.445,2598.5,2598.2,3.06881578]
[1646892121942,0.06718313,2598.4,2598.2,3.06881578]
[1646892123145,0.445,2598.7,2598.4,49.93281687]
[1646892123347,0.05536305,2598.8,2598.3,43.0]
[1646892123892,0.05812626,2599.0,2598.4,0.98562314]
[1646892124096,0.05616363,2598.7,2598.4,0.98562314]
[1646892124496,0.05437091,2598.9,2598.7,49.94383637]
[1646892124696,0.05437091,2598.9,2598.5,28.5]
[1646892125098,0.05437091,2598.9,2598.4,0.98562314]
[1646892125298,3.99937091,2598.9,2598.2,3.06881578]
[1646892125498,3.99937091,2598.9,2598.2,3.06985155]
[1646892125499,0.96351,2598.7,2598.2,3.06985155]
[1646892125699,0.502905,2598.6,2598.2,3.06985155]
[1646892125898,0.05348402,2598.5,2598.2,3.06985155]
[1646892126099,0.445,2598.4,2598.2,3.06985155]
[1646892126300,0.445,2598.4,2598.2,3.06881578]
[1646892126500,0.445,2598.4,2598.2,2.08319264]
[1646892128342,2.92677,2599.2,2598.2,2.08319264]
[1646892128343,0.49921231,2598.8,2598.4,50.0]
[1646892128543,0.49921231,2598.8,2598.3,1.02527944]
[1646892128544,0.05421231,2598.8,2598.3,1.02527944]
[1646892128744,0.0515903,2599.1,2598.3,1.02527944]
[1646892129049,0.05813212,2599.0,2598.3,4.52527944]
[1646892129448,0.05813212,2599.0,2598.3,1.02527944]
[1646892130049,0.05813212,2599.0,2598.3,4.52527944]
[1646892130250,0.05813212,2599.0,2598.3,1.02527944]
[1646892130550,0.44133151,2599.1,2598.3,1.02527944]
[1646892130750,0.94020637,2599.1,2598.3,1.11563163]
[1646892131150,0.95759113,2598.9,2598.3,1.11563163]
[1646892131394,1.40259113,2598.9,2598.3,1.11563163]
[1646892131798,0.445,2598.9,2598.3,1.11563163]
[1646892131998,0.445,2598.9,2598.3,0.09035219]
[1646892132196,2.37196,2598.9,2598.3,0.09035219]
[1646892132597,3.5,2598.8,2598.2,2.08319264]